Cogmind - Beta 16 @@@ ROGUE MODE // 2026.02.05 @ 16:48:01 Player: AlmondRoll Result: Destroyed by H-66 Slayer with Heavy Assault Rifle Performance ------------- Evolutions (5) 2500 Regions Visited (5) 1000 Robots Destroyed (78) 390 Value Destroyed (1787) 1787 Prototype IDs (27) 540 Alien Tech Used (0) 0 Bonus (800) 800 TOTAL SCORE: 7017 Bonus ------- Registered with UFD 300 Met Optimus in HQ 500 Cogmind --------- Core Integrity 0/1000 Matter 294/300 Energy 95/100 System Corruption 10% Temperature Cool (36) Movement Core (50) Location -5/Factory Parts ------- > --- POWER (2) -------- (None) > --- PROPULSION (5) --- Gyrokinetic Inverter > --- UTILITY (8) ------ Improved Signal Interpreter > --- WEAPON (2) ------- (None) > --- INVENTORY (5) ---- Meta Core Authchip [Device] Improved Datajack Botcube Peak State ------------ > --- POWER ------------ Neutrino Core Micro Fission Core > --- PROPULSION ------- Compact Wheel Compact Wheel Compact Wheel Gyrokinetic Inverter > --- UTILITY ---------- Scrap Suit Advanced Heat Sink Advanced Cooling System Large Storage Unit Structural Scanner Improved Signal Interpreter Advanced EM Disruption Field > --- WEAPON ----------- Neutron Cannon Neutron Cannon > --- INVENTORY -------- Micro Fission Core Meta Core Gyrokinetic Inverter Scrap Suit Authchip [Propulsion] Authchip [Device] Authchip [Device] Heavy Plasma Cannon Heavy Phase Cannon Heavy Phase Cannon Flak Gun Improved Datajack DRS Beacon Botcube [Rating: 74] Favorites ----------- Power Nuclear Core Engine Subdweller Power Source Power Core Nuclear Core Propulsion Compact Wheel Treads Light Treads Leg Aluminum Leg Wheel Compact Wheel Hover Unit Gyrokinetic Inverter Utility Humpback Device Structural Scanner Storage Humpback Processor Improved Signal Interpreter Protection Light Armor Plating Weapon Battle Rifle Energy Gun Subdweller Laser Energy Cannon Heavy Plasma Cannon Ballistic Gun Battle Rifle Ballistic Cannon Advanced Assault Cannon Special Weapon Mining Laser Special Melee Weapon Improved Datajack Build | -11 -10 -10 -7 -7 -5 ------- Run | Yrd Mat Sub Rec Scr Fac Slots Evolved 10 | . . . . . 10 Power 1 | . . . . . 1 Propulsion 3 | . . . . . 3 Utility 6 | . . . . . 6 Weapon . | . . . . . . Parts Attached 71 | 3 7 10 13 4 34 Power 8 | . 1 2 1 . 4 Engine 3 | . . 2 . . 1 Core 5 | . 1 . 1 . 3 Reactor . | . . . . . . Propulsion 18 | 2 . 3 3 . 10 Treads 5 | 2 . 1 . . 2 Leg . | . . . . . . Wheel 11 | . . 2 3 . 6 Hover 2 | . . . . . 2 Flight . | . . . . . . Utility 21 | 1 4 1 2 . 13 Device 13 | 1 1 . 2 . 9 Storage 5 | . 1 1 . . 3 Processor 2 | . 1 . . . 1 Hackware . | . . . . . . Protection 1 | . 1 . . . . Artifact . | . . . . . . Weapon 24 | . 2 4 7 4 7 Energy Gun 2 | . . 1 1 . . Energy Cannon 8 | . . 1 1 1 5 Ballistic Gun 8 | . 1 2 3 . 2 Ballistic Cannon 3 | . . . 2 1 . Launcher . | . . . . . . Special Weapon 2 | . 1 . . 1 . Impact Weapon . | . . . . . . Slashing Weapon . | . . . . . . Piercing Weapon . | . . . . . . Special Melee Weapon 1 | . . . . 1 . Unidentified Prototypes 3 | . . . . 1 2 Parts Lost 29 | . . 2 . . 27 Power 5 | . . 2 . . 3 Propulsion 10 | . . . . . 10 Utility 6 | . . . . . 6 Weapon 8 | . . . . . 8 Highest Loss Streak 13 | . . 1 . . 13 To Critical Strikes 1 | . . . . . 1 Average Backups 15 | 4 7 17 13 17 10 Power . | 1 . . . . . Propulsion 3 | 2 2 3 3 4 . Utility 6 | . 2 8 4 6 3 Weapon 4 | 1 2 5 4 5 3 Tool/Special . | . . . . . . Unused Backups 37 | 8 8 10 5 . 6 Power 3 | 1 1 . . . 1 Propulsion 8 | 4 2 . 2 . . Utility 14 | 1 3 7 . . 3 Weapon 11 | 2 2 3 3 . 1 Tool/Special 1 | . . . . . 1 Average Slot Usage (%) 85 | . 100 83 88 84 72 Engine 1 | . 8 4 . . . Core 10 | . 5 6 13 14 7 Treads 9 | . 28 19 9 . 3 Wheel 17 | . . 8 18 28 14 Device 2 | . 8 . 3 . 20 Storage 13 | . 14 14 13 14 5 Energy Gun 1 | . . 2 1 . . Energy Cannon 6 | . . 4 1 12 7 Ballistic Gun 13 | . 27 20 22 . 2 Ballistic Cannon 1 | . . . 2 1 . Special Melee Weapon 4 | . . . . 13 . Peak Build Rating 74 | 7 10 19 23 27 74 Average Rating 20 | 6 8 13 19 22 51 On Entrance 14 | 6 7 10 19 23 23 Avg Prop Armor Cover (%) 10 | . . 10 10 . 15 Naked Turns . | . . . . . . Heaviest Build 220 | 15 22 217 220 220 68 Greatest Support 80 | 40 40 40 32 32 80 Greatest Overweight (x) 13 | . . 10 13 6 3 Average Overweight (x) 5 | . . 6 6 6 . Largest Inventory Capacity 35 | 8 10 35 35 35 35 Average Capacity 29 | 8 8 33 29 35 14 Most Carried 35 | 6 10 35 35 35 24 Average Carried 25 | 4 7 24 27 29 13 Final Capacity 35 | 8 10 35 35 35 5 Final Carried 35 | 5 10 35 35 25 4 Scrap Suit Usage (%) 1 | . . . . . 3 Parts Cannibalized 4 | . . . . . 4 Class Distribution -------------------- 78% | Hauler-Mutant 10% | Mutant 7% | Scavenger-Mutant Dominant Class ---------------- Mutant | -10/Materials Hauler-Mutant | -10/Subcaves Hauler-Mutant | -7/Recycling Hauler-Mutant | -7/Scraptown Scavenger-Skirmisher | -5/Factory Resources | -11 -10 -10 -7 -7 -5 ----------- Run | Yrd Mat Sub Rec Scr Fac Matter Collected 2492 | 245 698 350 696 100 403 Remotely 10 | . . . . . 10 Salvage Created 3958 | 74 644 419 1602 . 1219 Parts 194 | 6 51 41 50 . 46 Haulers Intercepted 3 | . 1 . . . 2 Recyclers Shooed 22 | 1 2 . 17 . 2 Parts Field Recycled . | . . . . . . Retrieved Matter . | . . . . . . Parts Self-Destructed 27 | . . 27 . . . Prevented . | . . . . . . Parts Restored . | . . . . . . Kills | -11 -10 -10 -7 -7 -5 ------- Run | Yrd Mat Sub Rec Scr Fac Combat Hostiles Destroyed 35 | . 8 11 2 . 14 Guns 21 | . 8 8 2 . 3 Cannons 13 | . . 3 . . 10 AOE 1 | . . . . . 1 Classes Destroyed 15 | 2 6 3 . . 4 Worker 4 | . 4 . . . . Builder 7 | . 3 . 2 . 2 Tunneler 1 | 1 . . . . . Hauler 3 | . 1 . . . 2 Recycler 24 | 1 3 . 18 . 2 Mechanic 1 | . . . . . 1 Turret 2 | . . 2 . . . Watcher 1 | . 1 . . . . Swarmer 13 | . 6 3 . . 4 Grunt 7 | . 2 2 . . 3 Brawler 1 | . . . . . 1 Sentry 5 | . . 1 2 . 2 Hunter 2 | . . . . . 2 Programmer 2 | . . . . . 2 Subdweller 5 | . . 5 . . . Best Kill Streak 10 | 2 10 4 3 . 6 Combat Bots Only 4 | . 4 3 1 . 3 Max Kills in Single Turn 4 | 1 2 1 1 . 4 Gunslinging . | . . . . . . Exploded 1 | . . . . . 1 Melee . | . . . . . . Uniques/NPCs Destroyed . | . . . . . . Combat | -11 -10 -10 -7 -7 -5 -------- Run | Yrd Mat Sub Rec Scr Fac Hostile Shots Fired 433 | . 28 105 27 . 273 Missed 134 | . 3 43 10 . 78 Hits 299 | . 25 62 17 . 195 Melee 2 | . . . . . 2 Projectile 297 | . 25 62 17 . 193 AOE 5 | . . 2 . . 3 Critical Strikes 10 | . 1 . . . 9 Damage Taken 5067 | . 226 889 150 . 3802 Core 1191 | . 35 115 39 . 1002 Absorbed by Shields . | . . . . . . Regen/Repaired (Parts) 29 | . . . . . 29 Core Remaining (%) 62 | 100 . . . 24 . Volleys Fired 252 | 5 42 60 71 . 74 Largest 2 | 2 2 2 2 . 2 Hottest 180 | 40 100 110 85 . 180 Shots Fired 469 | 10 82 96 136 . 145 Gun 358 | 10 81 76 129 . 62 Cannon 110 | . . 20 7 . 83 Launcher . | . . . . . . Special 1 | . 1 . . . . Kinetic 336 | 10 81 55 128 . 62 Thermal 131 | . 1 41 6 . 83 Explosive . | . . . . . . Electromagnetic 2 | . . . 2 . . Robot Hit Streak 14 | 4 11 8 12 . 14 Robot Miss Streak 6 | 1 4 3 6 . 6 Penetration Max . | . . . . . . Secondary Targets 3 | . 2 1 . . . Max Gunslinging Chain 1 | . 1 1 . . . Shots Hit Robots 290 | 8 45 52 92 7 86 Core Hits 155 | 3 28 20 49 . 55 Critical Kills . | . . . . . . Critical Parts Destroyed 1 | . . . 1 . . Critical Strikes 2 | . . 1 1 . . Destroy 2 | . . 1 1 . . Melee Attacks 7 | . . . . 7 . Impact . | . . . . . . Slashing . | . . . . . . Piercing . | . . . . . . Sneak Attacks 7 | . . . . 7 . Combat Hostiles . | . . . . . . Follow-up Attacks . | . . . . . . Damage Inflicted 5507 | 108 610 798 1400 . 2591 Guns 3340 | 108 605 657 1371 . 599 Cannons 1598 | . . 141 . . 1457 Explosions 516 | . . . . . 516 Melee . | . . . . . . Ramming 53 | . 5 . 29 . 19 Kinetic 3070 | 108 605 444 1314 . 599 Thermal 2384 | . . 354 57 . 1973 Explosive . | . . . . . . Electromagnetic . | . . . . . . Impact . | . . . . . . Slashing . | . . . . . . Piercing . | . . . . . . Highest Corruption 10 | . 3 3 3 . 10 Average Corruption 2 | . 2 3 2 . 2 Corruption Purged 3 | . . . 3 . . Corruption Blocked . | . . . . . . Effects 132 | . 11 57 49 . 15 Message Errors 27 | . . 15 9 . 3 Matter Fused 32 | . 3 12 14 . 3 Heat Flow Errors 23 | . 1 12 8 . 2 Energy Discharges 15 | . 2 5 5 . 3 Parts Rejected 1 | . . . . . 1 Parts Fused 2 | . . 1 . . 1 Data Loss (minor) 22 | . 4 7 9 . 2 Data Loss (major) 4 | . . 1 3 . . Misfires 3 | . . 2 1 . . Weapon Failures 3 | . 1 2 . . . Overload Shots . | . . . . . . Overflow Damage 16 | . . . . . 16 Projectiles 12 | . . . . . 12 Explosions 4 | . . . . . 4 Melee . | . . . . . . Knockbacks . | . . . . . . Impact . | . . . . . . Kinetic . | . . . . . . Secondary . | . . . . . . Self-Inflicted Damage 31 | . . . 13 . 18 Shots . | . . . . . . Rammed 5 | . 1 . 3 . 1 Targets Rammed 5 | . 1 . 3 . 1 Kicked . | . . . . . . Crushed . | . . . . . . Highest Temperature 265 | 6 115 253 265 . 237 Average Temperature 51 | 6 38 70 49 . 47 Received Heat Transfer 717 | . 54 252 42 . 369 Effects 1 | . . . . . 1 Energy Bleed 1 | . . . . . 1 Siege Activations . | . . . . . . Martial Activations . | . . . . . . Shielding Activations . | . . . . . . Robots Disrupted . | . . . . . . Combat Hostiles . | . . . . . . Robots Corrupted . | . . . . . . Combat Hostiles . | . . . . . . Parts Fried . | . . . . . . Impact Corruptions . | . . . . . . Robots Melted . | . . . . . . Combat Hostiles . | . . . . . . Parts Melted 1 | . . . . . 1 Heat Transferred 2168 | . . 435 75 . 1658 Parts Sabotaged . | . . . . . . Parts Stolen . | . . . . . . Parts Stripped . | . . . . . . Power Chain Reactions . | . . . . . . Alert | -11 -10 -10 -7 -7 -5 ------- Run | Yrd Mat Sub Rec Scr Fac Maximum Alert Level 2 | . . . . . 2 Low Security (%) 95 | 100 100 . 100 . 76 Level 1 4 | . . . . . 22 Level 2 . | . . . . . . Level 3 . | . . . . . . Level 4 . | . . . . . . Level 5 . | . . . . . . High Security . | . . . . . . Max Security . | . . . . . . Peak Influence 414 | 10 161 . 67 . 414 Initial 67 | . . . 67 . . Average 28 | . 51 . 5 . 93 Influence Increases 1649 | 10 271 215 232 . 921 Destroy 0b10 Robot/C 640 | . 160 160 40 . 280 Destroy 0b10 Robot/NC 210 | 10 60 . 105 . 35 Destroy Leader 108 | . 34 10 . . 64 Successful Hack 60 | . . . 54 . 6 Disable Machine 195 | . 15 . 30 . 150 Destroy Structure 121 | . 2 . 3 . 116 Lose Combat Pursuer 315 | . . 45 . . 270 Influence Decreases 1251 | 10 160 184 366 8 523 Entered New Map 137 | . . 54 75 8 . Time Decay 880 | 10 160 120 291 . 299 Lost Part 234 | . . 10 . . 224 Squads Dispatched 4 | . . . . . 4 Investigation 1 | . . . . . 1 Extermination 2 | . . . . . 2 Reinforcement 1 | . . . . . 1 Assault . | . . . . . . Garrison . | . . . . . . Intercept . | . . . . . . Searches Triggered . | . . . . . . Construction Impeded 1 | . . . . . 1 Haulers Reinforced . | . . . . . . Active Scanning Responses . | . . . . . . Cargo Convoy Interrupts . | . . . . . . Stealth | -11 -10 -10 -7 -7 -5 --------- Run | Yrd Mat Sub Rec Scr Fac Distress Signals 2 | . 1 . . . 1 Communications Jammed . | . . . . . . Distress Signals . | . . . . . . Times Spotted 72 | . 14 14 2 . 42 Peak Tracking Total 14 | . 5 2 1 . 14 Tactical Retreats 8 | . . 2 . . 6 Traps | -11 -10 -10 -7 -7 -5 ------- Run | Yrd Mat Sub Rec Scr Fac Traps Triggered 5 | . 2 2 . . 1 Indirectly . | . . . . . . Trap Hack Attempts . | . . . . . . Triggered . | . . . . . . Disarmed . | . . . . . . Reprogrammed . | . . . . . . Reused . | . . . . . . Traps Extracted . | . . . . . . Installed . | . . . . . . Triggered . | . . . . . . Most Traps Carried 1 | . . . . 1 1 Machines | -11 -10 -10 -7 -7 -5 ---------- Run | Yrd Mat Sub Rec Scr Fac Machines Disabled 16 | . 1 3 2 . 10 Max in Single Turn 9 | . 1 1 1 . 9 Machines Repaired . | . . . . . . Machines Dismantled . | . . . . . . Machines Sabotaged . | . . . . . . Overloaded Fab Kills . | . . . . . . Hacking | -11 -10 -10 -7 -7 -5 --------- Run | Yrd Mat Sub Rec Scr Fac Machines Accessed 26 | . . 1 15 7 3 Terminals 9 | . . . 6 . 3 Fabricators . | . . . . . . Repair Stations . | . . . . . . Recycling Units 7 | . . . 7 . . Scanalyzers . | . . . . . . Garrison Access . | . . . . . . Total Hacks 123 | . . 9 55 49 10 Successful 96 | . . 9 35 49 3 Failed 27 | . . . 20 . 7 Catastrophic 10 | . . . 6 . 4 Database Lockouts . | . . . . . . Manual 24 | . . . 18 2 4 Terminals 21 | . . . 11 . 10 Fabricators . | . . . . . . Repair Stations . | . . . . . . Recycling Units 19 | . . . 19 . . Scanalyzers . | . . . . . . Garrison Access . | . . . . . . Terminal Hacks 88 | . . 9 28 49 2 Record 80 | . . 8 24 48 . Branch Access Points 1 | . . . . . 1 Terminal Index 1 | . . . 1 . . Dispatch Records 1 | . . . 1 . . Hauler Manifests 1 | . . . . . 1 Zone Layout 1 | . . . 1 . . Proto ID Catalog 2 | . . 1 . 1 . Release Object 1 | . . . 1 . . Fabricator Hacks . | . . . . . . Repair Station Hacks . | . . . . . . Recycling Unit Hacks . | . . . . . . Scanalyzer . | . . . . . . Garrison Access Hacks . | . . . . . . Unauthorized Hacks 8 | . . . 7 . 1 Terminals 1 | . . . . . 1 Botnet 1 | . . . . . 1 Fabricators . | . . . . . . Repair Stations . | . . . . . . Recycling Units 7 | . . . 7 . . Reject 5 | . . . 5 . . Recyclers 1 | . . . 1 . . Mask 1 | . . . 1 . . Scanalyzers . | . . . . . . Garrison Access . | . . . . . . Data Cores Recovered . | . . . . . . Used . | . . . . . . Hacking Detections 14 | . . . 11 . 3 Full Trace Events 4 | . . . 3 . 1 Feedback Events . | . . . . . . Feedback Blocked . | . . . . . . Robot Schematics Acquired . | . . . . . . Robots Built . | . . . . . . Authchips . | . . . . . . Time . | . . . . . . Total Robot Build Rating . | . . . . . . Part Schematics Acquired . | . . . . . . Parts Built . | . . . . . . Authchips . | . . . . . . Time . | . . . . . . Total Part Build Rating . | . . . . . . Part Studies Acquired . | . . . . . . Parts Repaired . | . . . . . . Time . | . . . . . . Parts Recycled . | . . . . . . Recycled Matter . | . . . . . . Retrieved Matter . | . . . . . . Retrieved Components . | . . . . . . Parts Scanalyzed . | . . . . . . Part Schematics Acquired . | . . . . . . Parts Damaged . | . . . . . . Bothacking | -11 -10 -10 -7 -7 -5 ------------ Run | Yrd Mat Sub Rec Scr Fac Used RIF Installer . | . . . . . . Robots Hacked 7 | . . . . 7 . Non-combat 1 | . . . . 1 . Combat 6 | . . . . 6 . Robot Hacks Applied 7 | . . . . 7 . parse_system 7 | . . . . 7 . Relay Couplers Released . | . . . . . . Fabnet Peak Effective % . | . . . . . . Robots Rewired . | . . . . . . Allies Hacked . | . . . . . . Hacks Repelled . | . . . . . . Allies | -11 -10 -10 -7 -7 -5 -------- Run | Yrd Mat Sub Rec Scr Fac Total Allies . | . . . . . . Largest Group . | . . . . . . Highest-Rated Group . | . . . . . . Highest-Rated Ally . | . . . . . . Total Orders . | . . . . . . Ally Attacks . | . . . . . . Total Damage . | . . . . . . Kills . | . . . . . . Allies Corrupted . | . . . . . . Allies Melted . | . . . . . . Intel | -11 -10 -10 -7 -7 -5 ------- Run | Yrd Mat Sub Rec Scr Fac Active Infowar (turns) 1962 | 28 418 . 647 . 869 Sensors 535 | . . . . . 535 Structural 1787 | . 330 . 647 . 810 Seismic 116 | 28 88 . . . . Robot Analysis Total . | . . . . . . Derelict Logs Recovered 2 | . . 1 . 1 . Drone Launches . | . . . . . . Drone Recoveries . | . . . . . . Exploration | -11 -10 -10 -7 -7 -5 ------------- Run | Yrd Mat Sub Rec Scr Fac Turns Passed 12405 | 49 653 3198 3361 4182 962 Spaces Moved 5693 | 18 306 1047 1522 2176 624 Core 68 | . . . . . 68 Treads 723 | 18 306 393 . . 6 Legs . | . . . . . . Wheels 4834 | . . 654 1522 2176 482 Hover 68 | . . . . . 68 Flight . | . . . . . . Fastest Speed 50 | 160 160 160 100 190 50 Average Speed 197 | 160 160 282 196 190 98 Slowest Speed 560 | 160 160 560 295 190 160 Overloaded Moves . | . . . . . . Propulsion Burnouts . | . . . . . . Robots Hopped . | . . . . . . Potential Cave-ins . | . . . . . . Cave-ins Triggered . | . . . . . . Exploration Rate (%) 54 | 3 43 74 99 95 14 Regions Visited 5 Branch Regions 3 Pre-discovered Areas . | . . . . . . Known Exits Taken . | . . . . . . Unknown Exits Taken 5 | 1 1 1 1 1 . Scrap Searched 12 | . . 6 . 6 . Spaces Dug 6 | . . . 2 . 4 Terrain Destroyed 77 | . . 2 2 . 73 Melee . | . . . . . . Projectile 32 | . . 2 2 . 28 AOE 45 | . . . . . 45 Terrain Rammed 1 | . . . . . 1 Walls Destroyed . | . . . . . . Machines Disabled . | . . . . . . Actions | -11 -10 -10 -7 -7 -5 --------- Run | Yrd Mat Sub Rec Scr Fac Total 6459 | 28 388 1205 1782 2232 824 Wait 154 | . 6 15 80 13 40 Move 5688 | 17 305 1046 1521 2175 624 Hop . | . . . . . . Pick Up 125 | 1 14 50 44 7 9 Fast Attach 41 | 1 3 2 9 6 20 Attach 23 | . 1 3 2 . 17 Detach 5 | . . . 2 . 3 Swap 29 | 2 3 6 6 1 11 Drop 129 | 2 13 23 44 23 24 Fire 252 | 5 42 60 71 . 74 Melee 7 | . . . . 7 . Ram 5 | . . . 3 . 2 Kick . | . . . . . . Crush 1 | . 1 . . . . Escape Stasis . | . . . . . . Rewire . | . . . . . . Trap . | . . . . . . Miscellaneous . | . . . . . . Route ------- -11/Scrapyard -10/Materials (discovered 3 exits: [*Mat x2] / *Sub) -10/Subcaves (discovered 3 exits: [*Mat x2] / *Rec) -7/Recycling (discovered 2 exits: *Fac / *Scr) -7/Scraptown (discovered 2 exits: *Fac x2) -5/Factory (discovered 2 exits: Upp x2) History --------- Turn | Location | Event 17 | -11/Scrapyard | Discovered new exit (range 2) 50 | -11/Scrapyard | Entered Materials 318 | -10/Materials | Build established: Mutant 319 | -10/Materials | Discovered new exit (range 4) 487 | -10/Materials | Discovered new exit (range 6) 509 | -10/Materials | Discovered new exit (range 15) 703 | -10/Materials | Entered Subcaves 895 | -10/Subcaves | Discovered new exit (range 13) 1244 | -10/Subcaves | Build established: Hauler-Mutant 2227 | -10/Subcaves | Shifting Twisted Machinery released Barrage Gun 2261 | -10/Subcaves | Shifting Twisted Machinery released Sub. Beam Cannon 2492 | -10/Subcaves | A swath of the cavern ceiling suddenly collapsed 2846 | -10/Subcaves | Shifting Twisted Machinery released Flamer 2847 | -10/Subcaves | Shifting Twisted Machinery released Flamer 2847 | -10/Subcaves | Discovered new exit (range 7) 3292 | -10/Subcaves | Learned Materials stockpile data 3301 | -10/Subcaves | Disturbed a concealed Subdweller 3302 | -10/Subcaves | Ambushed by Subdweller buried in earth 3509 | -10/Subcaves | Visited 4L-MR0's lab 3537 | -10/Subcaves | Found Meta Core 3845 | -10/Subcaves | Core integrity fell below 50% 3849 | -10/Subcaves | Discovered new exit (range 8) 3882 | -10/Subcaves | A swath of the cavern ceiling suddenly collapsed 3901 | -10/Subcaves | Entered Recycling 3902 | -7/Recycling | Met a Zionite searching for Scraptown 3902 | -7/Recycling | Joined Warlord attack on 0b10 via Recycling 5057 | -7/Recycling | Discovered new exit (range 16) 6513 | -7/Recycling | Build established: Scavenger-Mutant 6917 | -7/Recycling | Scanned before Scraplab entrance 7231 | -7/Recycling | Entered Scraplab 7258 | -7/Recycling | Discovered new exit (range 3) 7262 | -7/Recycling | Entered Scraptown 7264 | -7/Scraptown | Build established: Hauler-Mutant 7807 | -7/Scraptown | Visited Junk Repository 7892 | -7/Scraptown | Visited UFD Registry 7919 | -7/Scraptown | Visited CPS Storage 7991 | -7/Scraptown | Visited Junk Repository 8019 | -7/Scraptown | Heard Great Nut preacher, LISTEN AND RECITE! 8034 | -7/Scraptown | Visited Cave Peace 8406 | -7/Scraptown | Visited Awakened 8532 | -7/Scraptown | Visited Red Mages 8610 | -7/Scraptown | Visited Artisan Demo Area 8758 | -7/Scraptown | Scanned Subdweller tech in exchange for log data 8764 | -7/Scraptown | Learned Research security intel 8794 | -7/Scraptown | Discovered new exit (range 11) 9442 | -7/Scraptown | Registered with UFD as "Smoothstep" 9524 | -7/Scraptown | Visited Abandonware Association 9554 | -7/Scraptown | Learned abandonware demo "REPAIR.EXE" 9554 | -7/Scraptown | Learned abandonware demo "KABOOM.EXE" 9602 | -7/Scraptown | Visited Junk Cannon Lab 9616 | -7/Scraptown | Found Prototype Special Weapon 9616 | -7/Scraptown | Identified Junk Cannon 9754 | -7/Scraptown | Visited Science Testing Area 9834 | -7/Scraptown | Delivered Scrap Shield to a Scientist 10112 | -7/Scraptown | Visited LU-1G1's Boring Crew 10269 | -7/Scraptown | Visited DA-N13 Charitable Foundation 10286 | -7/Scraptown | Found DCF Scrap (30 items) 10327 | -7/Scraptown | Visited Research Penetration Think Tank 10360 | -7/Scraptown | Visited Curators Association 10407 | -7/Scraptown | Visited Botcube Research 10453 | -7/Scraptown | Visited Science Guys 10531 | -7/Scraptown | Visited Derelict Rescue Squad 10548 | -7/Scraptown | Found DRS Beacon 10634 | -7/Scraptown | Found Botcube 10866 | -7/Scraptown | Discovered new exit (range 3) 10908 | -7/Scraptown | Found Scrap Suit 10911 | -7/Scraptown | Found Scrap Suit 11322 | -7/Scraptown | Met Optimus 11322 | -7/Scraptown | Accepted into 0bPrime 11444 | -7/Scraptown | Entered Factory 11444 | -5/Factory | Evolved 10 slots: Power x1, Propulsion x3, Utility x6 11648 | -5/Factory | Lost 9 parts (1p5n1u2w) 11924 | -5/Factory | Identified exit to Upper Caves 12328 | -5/Factory | Core integrity fell below 50% 12381 | -5/Factory | Lost 13 parts (2p3n4u4w) 12389 | -5/Factory | Core integrity fell below 20% 12399 | -5/Factory | System corruption reached 10% 12406 | -5/Factory | Destroyed by H-66 Slayer with Heavy Assault Rifle Last Messages --------------- 12347_ Penetrated by Slug. 12350_ Lgt. Ion Engine destroyed. 12353_ Slug penetrates Wall. 12354_ Neutrino Reactor explodes. 12354_ Door malfunctions. 12354_ Neutrino Reactor explodes. 12354_ Emergency Access malfunctions. 12367_ S7KAKGR JQ3MGZH0RMRG ,WB9PLII1 12388_ Slammed into Wall. 12388_ Imp. Signal Interpreter broken. 12388_ Destabilizing: Short circuit. 12388_ Destabilizing: Core damaged (-40). 12390_ System corrupted: Energy discharge (-17). 12402_ Door malfunctions. 12405_ System corrupted: Matter fused (-6). 12406_ Drone sends a signal. 12406_ Critical hit (Burn: +37). 12406_ Penetrated by Slug. 12406_ Gyrokinetic Inverter destroyed. 12406_ Penetrated by Slug. Map ----- +----------------------------------------------------+ | | | | | | | | | | | | | | | | | ????????####?????????????????????????????????????? | | ???#################?????????????????????????????? | | #########"############################### # ####?? | | ##### ##############################?? | | ## [ + ##?? | | ## ##?## ###?? | | ## ##?## #### | | #T """" !! ##?## #### | | ## """" ! ##?## [ # | | ## """" ! ##?## [ | | = ## ##### "" | | ##### = ##+######### "" | | ##### [%= # #### # """ | | [ * =! + #### # """ | | #################### # #### """ | | ######### ## ############ # | | ??????### !## ######################+###### | | ???????## # @ | | ######?## """ # | | #########! """ # | | #####!! """ # b | | / +!! # | | ##### # h ###################/###### | | ###########+###gg g ######### # | | # ##?????## # | | # ##?????## # | | # ##?????## # | | # n ##?????## # """ | | # ##?????## # """ | | # #####+##########?????## # """ | | =# ??? #######?????## # """ | | # ??????????????????????## ##### | | / ???????????????????????## ##? | | # ?????????????????????## ##??? | | # #????????????????????## ##??? | | # #????????????????????################??? | | # #????????????????????######### #??? | | ##### ? #??????????????????????????????????????? | | ?? #??????????????????????????????????????? | | ???????????????????????????????????????????????? | | ??????????????????????????????????????????????? | | ??????????????????????????????????????????????? | +----------------------------------------------------+ Best States ------------- Heat Dissipation 90 Energy Generation 29 Energy Capacity 365 Matter Stores 400 Matter Capacity 500 Sight Range 16 Robot Scan Range 15 Terrain Scan Density 10 Armor Coverage 150 Evasion (%) 51 Targeting Accuracy 5 Recoil Reduction 6 Authchip Count 3 Item Schematics ----------------- None Robot Schematics ------------------ None Fabricated ------------ Nothing Repaired ---------- Nothing Studied --------- None Alien Tech Used ----------------- None Achievements -------------- Analysis Probe Civilization 2243 Fancy Inventory Link The Feds You May Approach The Wall Challenges ------------ None Game ------ Seed ScrapElectrostormBattery Manual? 0 Play Time 01:39:15 Cumulative 432.7 hours Start 2026.02.05 @ 15:02:50 End 2026.02.05 @ 16:48:01 Sessions 1 Manual Loads 0 Difficulty Rogue Special Mode None Game No. 206 Rogue 206 Adventurer 0 Explorer 0 Win Type - Total 15 Types 8/0/5/2/0/0/0/0/0/0 Lore% 61 Gallery% 72 Achievement% 43 Wizard Run 0 Options --------- Layout 0 ASCII 0 Keyboard 0 Movement Numpad Keybinds 0 Fullscreen 1 Font 18/SmallcapsGlow Map View 76x50 Zoom Use 0% Tactical HUD 1 Map Filters NONE Filters NONE Steam 1 RUN: 75161bd0-d455-4245-b692-4b22e06f3cfc